bitfinex-derivatives/quotes_ETHF0:USTF0_20241023
["timestamp","ask_amount","ask_price","bid_price","bid_amount"]
[1729646081958,4.34885,2618.8,2618.7,1.38]
[1729646086366,0.34387,2618.7,2618.6,0.34388]
[1729646086566,0.34387,2618.7,2618.6,1.72388]
[1729646087065,3.614,2618.8,2618.7,0.34387]
[1729646087364,3.55165,2618.8,2618.7,1.72387]
[1729646088358,3.55165,2618.8,2618.7,1.38]
[1729646088961,3.55165,2618.8,2618.7,1.72387]
[1729646089162,3.55165,2618.8,2618.7,1.38]
[1729646089870,0.34385,2618.8,2618.7,1.72387]
[1729646090179,0.34385,2618.8,2618.7,1.38]
[1729646090663,1.18495,2618.8,2618.7,1.38]
[1729646097974,0.8411,2618.8,2618.6,1.72387]
[1729646098171,0.34387,2618.7,2618.6,1.72387]
[1729646100567,0.34387,2618.7,2618.6,1.38]
[1729646101663,0.34387,2618.7,2618.6,1.72388]
[1729646104169,0.8411,2618.8,2618.6,1.38]
[1729646104477,1.18496,2618.8,2618.7,1.38]
[1729646104677,1.18496,2618.8,2618.7,1.72387]
[1729646104868,1.18496,2618.8,2618.7,1.38]
[1729646109282,1.18496,2618.8,2618.7,1.72387]
[1729646110777,1.18496,2618.8,2618.7,1.38]
[1729646111991,1.18496,2618.8,2618.7,1.72387]
[1729646112185,1.18496,2618.8,2618.7,1.38]
[1729646117100,0.8411,2618.8,2618.6,1.72387]
[1729646117404,0.34387,2618.7,2618.6,1.72387]
[1729646118899,0.34387,2618.7,2618.6,1.38]
[1729646120307,0.34387,2618.7,2618.6,1.72388]
[1729646121900,0.34387,2618.7,2618.6,1.38]
[1729646122300,0.34387,2618.7,2618.6,1.72388]
[1729646122703,0.34387,2618.7,2618.6,1.38]
[1729646123105,0.34387,2618.7,2618.6,1.72388]
[1729646131512,0.34387,2618.7,2617.8,4.149]
[1729646131513,5.1984,2618.7,2617.8,4.149]
[1729646131721,1.72393,2618.3,2618.1,1.38]
[1729646131906,3.2078,2618.5,2618.4,0.34391]
[1729646132112,3.2078,2618.5,2618.4,1.72391]
[1729646135914,0.34388,2618.6,2618.5,0.34389]
[1729646136114,0.34388,2618.6,2618.5,1.72389]
[1729646143016,5.011,2618.7,2618.2,1.228]
[1729646143209,1.72391,2618.4,2618.3,1.38]
[1729646143414,1.72391,2618.4,2618.3,1.72392]
[1729646143714,2.10921,2618.4,2618.3,1.72392]
[1729646148220,0.72921,2618.4,2618.3,1.72392]
[1729646151218,0.3853,2618.4,2618.3,1.72392]
[1729646151616,0.72921,2618.4,2618.3,1.72392]
[1729646152918,0.3853,2618.4,2618.3,1.72392]
[1729646153113,0.3996,2618.5,2618.4,0.34391]
[1729646153319,0.3996,2618.5,2618.4,1.72391]
[1729646161830,1.7796,2618.5,2618.1,3.2078]
[1729646162030,0.34393,2618.3,2618.2,0.34392]
[1729646162518,0.75963,2618.3,2618.2,0.34392]
[1729646162929,0.4157,2618.3,2618.2,0.34392]
[1729646163128,0.75962,2618.3,2618.2,0.34392]
[1729646163629,1.7957,2618.3,2618.1,3.2078]
[1729646163923,1.7957,2618.3,2618.0,1.72395]
[1729646163924,0.34394,2618.1,2618.0,1.72395]
[1729646164129,1.7957,2618.3,2618.0,1.38]
[1729646164326,1.7957,2618.3,2618.1,1.38]
[1729646164327,0.34394,2618.2,2618.1,1.38]
[1729646168135,0.34394,2618.1,2618.0,1.72395]
[1729646168330,0.34394,2618.1,2618.0,0.34395]
[1729646168331,0.73114,2618.1,2618.0,0.34395]
[1729646168529,0.73114,2618.1,2618.0,1.72395]
[1729646171326,0.73114,2618.1,2618.0,1.38]
[1729646171528,0.34396,2618.0,2617.9,2.11186]
[1729646171837,0.4172,2618.0,2617.9,2.11186]
[1729646172135,0.76116,2618.0,2617.9,2.11186]
[1729646172334,0.4172,2618.0,2617.9,2.11186]
[1729646201151,0.76116,2618.0,2617.9,2.11186]
[1729646201348,0.4172,2618.0,2617.8,1.38]
[1729646201641,0.34398,2617.8,2617.7,0.344]
[1729646201854,1.38,2617.8,2617.6,1.38]
[1729646202044,1.38,2617.8,2617.5,6.27028665]
[1729646202045,1.2092,2617.7,2617.5,6.27028665]
[1729646202350,0.34401,2617.6,2617.5,6.61430665]
[1729646202549,2.5892,2617.7,2617.5,6.61430665]
[1729646202745,2.93321,2617.7,2617.5,6.61430665]
[1729646203847,2.5892,2617.7,2617.5,4.89028665]
[1729646204045,0.34404,2617.5,2617.3,0.34405]
[1729646204246,2.11354,2617.4,2617.2,1.38]
[1729646204446,0.4174,2617.3,2617.2,0.34406]
[1729646204655,0.4174,2617.3,2617.2,1.72406]
[1729646204847,0.4174,2617.3,2617.2,1.38]
[1729646205049,0.4174,2617.3,2617.2,1.72406]
[1729646205251,0.76145,2617.3,2617.2,1.72406]
[1729646205449,0.76145,2617.3,2617.2,1.38]
[1729646230773,4.06784,2617.6,2617.2,1.72405]
[1729646230774,0.34402,2617.5,2617.2,1.72405]
[1729646230973,3.6178,2617.6,2617.4,1.72403]
[1729646231179,3.55178,2617.9,2617.8,0.34398]
[1729646231382,3.96178,2617.9,2617.8,1.72398]
[1729646231582,3.6178,2617.9,2617.8,1.72398]
[1729646232585,3.96177,2617.9,2617.8,1.72398]
[1729646233793,4.9978,2617.9,2617.8,1.38]
[1729646234085,5.34177,2617.9,2617.8,1.38]
[1729646235889,2.13397,2617.9,2617.8,1.38]
[1729646236788,2.13397,2617.9,2617.7,0.34399]
[1729646236789,1.79,2617.9,2617.7,1.38]
[1729646236987,2.1975,2617.8,2617.6,1.72401]
[1729646237181,0.344,2617.7,2617.6,1.72401]
[1729646238985,2.54149,2617.8,2617.6,1.72401]
[1729646239186,2.54149,2617.8,2617.7,1.38]
[1729646239388,0.8175,2617.8,2617.7,1.724]
[1729646239592,1.79,2617.9,2617.8,0.34398]
[1729646239593,0.41,2617.9,2617.8,0.34398]
[1729646239891,0.75397,2617.9,2617.8,2.12598]
[1729646240496,0.41,2617.9,2617.8,2.12598]
[1729646241587,0.75397,2617.9,2617.8,2.12598]
[1729646264198,0.75397,2617.9,2617.8,1.38]
[1729646264405,1.16407,2617.9,2617.8,1.72398]
[1729646265315,1.16407,2617.9,2617.8,1.38]
[1729646266305,1.16407,2617.9,2617.8,1.72398]
[1729646266800,1.16407,2617.9,2617.8,1.38]
[1729646267804,1.16407,2617.9,2617.8,1.72398]
[1729646269003,0.34398,2617.8,2617.7,1.38]
[1729646269200,0.34401,2617.6,2617.5,2.12631]
[1729646270003,0.75561,2617.6,2617.5,1.7823]
[1729646270210,0.75561,2617.6,2617.5,2.12632]
[1729646271010,0.4116,2617.6,2617.5,2.12632]
[1729646271600,0.75561,2617.6,2617.5,2.12632]
[1729646272702,0.4116,2617.6,2617.5,2.12632]
[1729646273709,0.75561,2617.6,2617.5,2.12632]
[1729646274214,0.4116,2617.6,2617.5,2.12632]
[1729646275207,0.7312,2617.7,2617.6,0.34401]
[1729646275507,0.7312,2617.7,2617.6,1.72401]
[1729646279417,0.3872,2617.7,2617.6,1.72401]
[1729646280013,0.7312,2617.7,2617.6,1.72401]
[1729646280316,3.2078,2618.0,2617.6,5.2]
[1729646280511,3.2078,2618.0,2617.9,1.72397]
[1729646280823,0.76214,2618.2,2618.0,0.34395]
[1729646281123,3.2078,2618.3,2618.2,0.34393]
[1729646281316,3.2078,2618.3,2618.2,1.72393]
[1729646281514,0.4264,2618.4,2618.3,0.34392]
[1729646281713,0.4264,2618.4,2618.3,1.72392]
[1729646283420,0.34387,2618.7,2618.5,0.34388]
[1729646283722,0.34387,2618.7,2618.6,1.38]
[1729646284409,0.34387,2618.7,2618.6,1.72388]
[1729646284609,0.34387,2618.7,2618.6,1.38]
[1729646284910,0.34387,2618.7,2618.6,1.01407507]
[1729646285110,0.34387,2618.7,2618.6,1.35795507]
[1729646285315,0.34387,2618.7,2618.6,1.01407507]
[1729646286214,5.1984,2618.7,2618.1,3.2078]
[1729646286414,1.38,2618.4,2618.3,0.34391]
[1729646286622,1.72391,2618.4,2618.3,0.34391]
[1729646286812,1.72391,2618.4,2618.3,1.72391]
[1729646287011,0.34391,2618.4,2618.3,1.72391]
[1729646287212,1.7239,2618.5,2618.3,1.72391]
[1729646287406,0.813,2618.4,2618.3,0.34391]
[1729646287616,0.813,2618.4,2618.3,1.72391]
[1729646289618,1.15691,2618.4,2618.3,1.72391]
[1729646289816,1.15691,2618.4,2618.3,1.38]
[1729646290117,0.813,2618.4,2618.3,1.38]
[1729646290416,1.15691,2618.4,2618.3,1.38]
[1729646290614,1.15691,2618.4,2618.3,1.72392]
[1729646291209,1.15691,2618.4,2618.3,1.38]
[1729646291422,1.58161,2618.4,2618.3,1.38]
[1729646296017,1.58161,2618.4,2618.3,1.72392]
[1729646296718,1.2377,2618.4,2618.3,1.72392]
[1729646301222,0.813,2618.4,2618.3,1.72392]
[1729646301427,3.2473259,4033.4,2618.3,1.38]
[1729646301428,3.2078,2618.7,2618.3,1.38]
[1729646301625,0.3908,2618.8,2618.6,1.38]
[1729646301626,0.7801,2618.8,2618.6,1.38]
[1729646301929,0.7801,2618.8,2618.7,1.72387]
[1729646304427,0.85949,2619.3,2619.2,0.3438]
[1729646304428,3.2078,2619.3,2619.2,0.3438]
[1729646304724,0.34377,2619.5,2619.3,0.34379]
[1729646304725,0.8329,2619.4,2619.3,0.34379]
[1729646304923,0.8329,2619.4,2619.3,1.72379]
[1729646305436,3.2078,2619.7,2619.6,0.34375]
[1729646305633,3.2078,2619.7,2619.6,1.72375]
[1729646305842,4.4336,2620.0,2619.7,0.34373]
[1729646306132,4.4336,2620.0,2619.9,1.72371]
[1729646306427,3.2078,2620.0,2619.9,1.72371]
[1729646308834,3.2078,2620.0,2619.9,1.38]
[1729646309636,3.2078,2620.0,2619.9,1.72371]
[1729646311435,3.2078,2620.3,2619.9,1.38]
[1729646311633,3.2078,2620.3,2620.2,1.38]
[1729646311827,3.2078,2620.3,2620.2,1.72367]
[1729646312027,3.2078,2620.3,2620.2,1.38]
[1729646312738,3.2078,2620.3,2620.2,1.72367]
[1729646313527,3.55146,2620.3,2620.2,1.72367]
[1729646313732,0.34366,2620.3,2620.2,1.72367]
[1729646316931,0.34366,2620.3,2620.2,1.38]
[1729646317136,0.34366,2620.3,2620.2,1.72367]
[1729646317741,4.0138,2620.4,2620.3,0.34366]
[1729646317742,4.35745,2620.4,2620.3,0.34366]
[1729646317934,4.35745,2620.4,2620.3,1.38]
[1729646320741,1.14965,2620.4,2620.3,1.38]
[1729646320932,4.35745,2620.4,2620.3,1.38]
[1729646324440,1.14965,2620.4,2620.3,1.38]
[1729646324743,4.35745,2620.4,2620.3,1.38]
[1729646328144,3.5962,2620.4,2620.3,1.72366]
[1729646328342,0.76853,2620.6,2620.5,0.34363]
[1729646328343,0.4249,2620.6,2620.5,0.34363]
[1729646328549,0.3436,2620.8,2620.7,0.3436]
[1729646328755,1.17038,2620.9,2620.8,0.34359]
[1729646329049,1.17038,2620.9,2620.8,1.72359]
[1729646329844,1.17038,2620.9,2620.8,1.38]
[1729646330742,1.17038,2620.9,2620.8,1.72359]
[1729646331344,1.9239,2621.0,2620.9,0.34358]
[1729646331558,1.9239,2621.0,2620.9,2.13868]
[1729646331857,2.26746,2621.0,2620.9,2.13868]
[1729646332554,1.9239,2621.0,2620.9,2.13868]
[1729646332852,2.26746,2621.0,2620.9,2.13868]
[1729646333446,0.34356,2621.1,2620.9,2.13867]
[1729646333653,0.34356,2621.1,2621.0,1.38]
[1729646335467,0.34356,2621.1,2620.9,0.75867]
[1729646335468,0.34356,2621.0,2620.9,0.4151]
[1729646335659,0.76386,2621.0,2620.9,1.7951]
[1729646339366,0.76386,2621.0,2620.9,1.38]
[1729646342176,0.76386,2621.0,2620.9,1.72358]
[1729646343569,0.76386,2621.0,2620.9,1.38]
[1729646346668,0.76386,2621.0,2620.9,1.72358]
[1729646347873,0.76386,2621.0,2620.9,1.38]
[1729646348480,0.76386,2621.0,2620.9,1.72358]
[1729646348778,0.76386,2621.0,2620.7,3.2078]
[1729646348779,0.4203,2621.0,2620.7,3.2078]
[1729646348962,0.34359,2620.8,2620.7,3.5514]
[1729646349167,0.34359,2620.8,2620.7,4.5878]
[1729646349377,0.34359,2620.8,2620.7,3.2078]
[1729646349569,0.34359,2620.8,2620.7,4.5878]
[1729646349772,0.34359,2620.8,2620.7,4.9314]
[1729646350274,0.34359,2620.8,2620.7,4.5878]
[1729646350475,0.34362,2620.6,2620.4,3.2078]
[1729646350664,0.4158,2620.5,2620.4,3.55143]
[1729646351473,0.4158,2620.5,2620.4,6.31143]
[1729646353470,0.4158,2620.5,2620.4,4.93143]
[1729646353980,0.4158,2620.5,2620.4,6.31143]
[1729646354168,0.4158,2620.5,2620.4,4.93143]
[1729646355476,0.4158,2620.5,2620.4,6.31143]
[1729646356369,0.4158,2620.5,2620.4,3.10363]
[1729646356675,0.4158,2620.5,2620.4,6.31143]
[1729646356877,0.7352,2620.8,2620.7,0.3436]
[1729646357375,0.3916,2620.8,2620.7,0.3436]
[1729646357767,0.4093,2620.9,2620.8,0.34359]
[1729646357972,0.3916,2621.0,2620.8,1.38]
[1729646358275,0.85873,2621.6,2620.9,1.774]
[1729646358276,0.4008,2621.2,2620.9,1.774]
[1729646358582,0.74434,2621.2,2621.1,1.72355]
[1729646359879,4.55954,2621.2,2621.1,1.38]
[1729646360176,4.55954,2621.2,2621.1,1.72355]
[1729646360573,0.74434,2621.2,2620.7,4.9108]
[1729646360772,0.74434,2621.2,2621.1,1.38]
[1729646361173,0.74434,2621.2,2621.1,1.72355]
[1729646361677,0.4008,2621.2,2621.1,1.72355]
[1729646362074,0.74434,2621.2,2621.1,1.38]
[1729646362476,0.74434,2621.2,2621.1,1.72355]
[1729646366474,0.4008,2621.2,2621.1,1.72355]
[1729646366678,0.74434,2621.2,2621.1,1.72355]
[1729646368487,0.74434,2621.2,2621.1,1.38]
[1729646368686,0.34352,2621.4,2621.3,0.34351]
[1729646368984,3.9952,2621.5,2621.3,2.76]
[1729646369179,0.34351,2621.4,2621.3,1.72351]
[1729646369384,0.34351,2621.4,2621.3,3.10351]
[1729646370190,0.34351,2621.4,2621.3,2.76]
[1729646370389,4.33871,2621.5,2621.4,0.34351]
[1729646370576,4.33871,2621.5,2621.4,1.72351]
[1729646370781,4.33871,2621.5,2621.4,1.38]
[1729646372183,1.13091,2621.5,2621.4,1.38]
[1729646372785,1.13091,2621.5,2621.4,1.72351]
[1729646372981,1.13091,2621.5,2621.4,1.38]
[1729646374189,1.13091,2621.5,2621.4,2.76]
[1729646378090,1.13091,2621.5,2621.4,3.10351]
[1729646378290,1.13091,2621.5,2621.4,2.76]
[1729646382590,0.7874,2621.5,2621.1,2.89887057]
[1729646382791,0.7874,2621.5,2621.1,1.49926919]
[1729646383097,0.34351,2621.4,2621.3,0.34352]
[1729646383797,1.13091,2621.5,2621.3,0.34352]
[1729646384098,1.13091,2621.5,2621.4,2.76]
[1729646387002,0.7874,2621.5,2621.4,3.10351]
[1729646387195,1.1309,2621.5,2621.4,2.76]
[1729646387390,1.1309,2621.5,2621.4,3.10351]
[1729646387706,0.7874,2621.5,2621.4,3.10351]
[1729646388000,1.1309,2621.5,2621.4,3.10351]
[1729646388201,0.7874,2621.5,2621.4,3.10351]
[1729646388700,0.7874,2621.5,2621.4,2.71983234]
[1729646390496,1.1309,2621.5,2621.4,2.71983234]
[1729646390697,1.1309,2621.5,2621.4,3.10351]
[1729646391095,0.7874,2621.5,2621.4,3.10351]
[1729646391292,1.1309,2621.5,2621.4,3.10351]
[1729646393200,0.7874,2621.5,2621.4,3.10351]
[1729646393597,3.5964,2621.7,2621.6,0.34349]
[1729646393800,3.5964,2621.7,2621.6,1.72349]
[1729646394494,0.3886,2621.7,2621.6,1.72349]
[1729646395599,0.73207,2621.7,2621.6,1.72349]
[1729646397198,0.73207,2621.7,2621.6,1.38]
[1729646398206,0.3886,2621.7,2621.6,1.38]
[1729646398392,0.3886,2621.7,2621.6,1.72349]
[1729646398997,3.2078,2622.0,2621.6,6.5744]
[1729646399200,3.2078,2622.0,2621.9,3.10345]
[1729646399403,3.2078,2622.0,2621.9,1.38]
[1729646399600,3.2078,2622.0,2621.9,1.72345]
[1729646401605,3.2078,2622.0,2621.9,3.10345]
[1729646402107,3.2078,2622.0,2621.9,1.72345]
[1729646402305,3.55123,2622.0,2621.9,1.72345]
[1729646402500,3.2078,2622.0,2621.9,1.72345]
[1729646403900,3.2078,2622.0,2621.9,3.10345]
[1729646404100,0.4016,2622.2,2621.9,6.5736]
[1729646404300,0.4016,2622.2,2622.1,3.10342]
[1729646406799,0.74501,2622.2,2622.1,3.10342]
[1729646407004,0.4016,2622.2,2622.1,3.10342]
[1729646407306,0.74501,2622.2,2622.1,3.10342]
[1729646407709,0.4016,2622.2,2622.1,3.10342]
[1729646408109,0.74501,2622.2,2622.1,3.10342]
[1729646409004,0.74501,2622.2,2622.1,2.76]
[1729646410612,0.74501,2622.2,2622.1,3.10342]
[1729646411413,0.74501,2622.2,2622.1,2.76]
[1729646412408,0.74501,2622.2,2622.1,3.10342]
[1729646412714,0.4016,2622.2,2622.1,3.10342]
[1729646413219,3.2078,2622.4,2622.1,2.76]
[1729646413416,3.2078,2622.4,2622.3,1.72339]
[1729646415020,0.34332,2622.9,2622.4,0.85846]
[1729646415208,0.76751,2623.0,2622.8,3.10332]
[1729646415409,0.76751,2623.0,2622.9,1.38]
[1729646417723,0.76751,2623.0,2622.9,2.76]
[1729646417919,0.76751,2623.0,2622.9,3.10332]
[1729646418623,0.76751,2623.0,2622.9,2.76]
[1729646418823,0.76751,2623.0,2622.9,1.38]
[1729646419223,0.76751,2623.0,2622.9,0.0976]
[1729646421723,5.617,2623.0,2622.8,1.38]
[1729646422023,0.34332,2622.9,2622.8,1.38]
[1729646422525,4.15612,2622.9,2622.8,1.38]
[1729646425129,0.34332,2622.9,2622.8,1.38]
[1729646433334,0.34334,2622.7,2622.6,1.38]
[1729646433930,0.75694,2622.7,2622.6,1.38]
[1729646438037,4.56974,2622.7,2622.6,1.38]
[1729646438729,0.75694,2622.7,2622.6,1.38]
[1729646438925,4.56974,2622.7,2622.6,1.38]
[1729646442144,0.34341,2622.2,2622.1,4.419]
[1729646442445,0.34341,2622.2,2622.1,4.31462]
[1729646443749,0.34341,2622.2,2622.1,3.9712]
[1729646444144,0.34341,2622.2,2622.1,2.5912]
[1729646461352,0.34341,2622.2,2622.1,2.1968]
[1729646464057,0.34341,2622.2,2622.1,2.54022]
[1729646464758,1.2125,2622.4,2622.1,3.5768]
[1729646465055,0.34337,2622.5,2622.4,0.34338]
[1729646465261,0.8149,2622.9,2622.5,0.34336]
[1729646465446,0.34335,2622.7,2622.6,0.34335]
[1729646465646,0.34335,2622.7,2622.6,1.72335]
[1729646467158,0.34335,2622.7,2622.6,1.38]
[1729646467357,0.34335,2622.7,2622.6,1.72335]
[1729646468465,0.34335,2622.7,2622.6,1.38]
[1729646468762,0.34335,2622.7,2622.6,1.72335]
[1729646469364,0.34335,2622.7,2622.6,1.38]
[1729646469660,0.34335,2622.7,2622.6,1.72335]
[1729646470659,0.34335,2622.7,2622.6,1.38]
[1729646471653,0.34335,2622.7,2622.6,1.72335]
[1729646472055,0.34334,2622.8,2622.7,0.34334]
[1729646472262,0.34334,2622.8,2622.7,1.38]
[1729646473571,0.34334,2622.8,2622.7,1.72334]
[1729646473867,0.34334,2622.8,2622.7,1.38]
[1729646474570,0.34334,2622.8,2622.7,1.72334]
[1729646475467,0.34334,2622.8,2622.7,1.38]
[1729646475663,0.34333,2622.9,2622.8,0.34332]
[1729646475857,0.34333,2622.9,2622.8,1.72332]
[1729646476059,3.9868,2623.1,2622.8,1.38]
[1729646476369,0.34323,2623.6,2623.5,0.34323]
[1729646476568,0.85788,2624.2,2623.6,0.34322]
[1729646476569,0.34321,2623.8,2623.6,0.34322]
[1729646476764,0.793,2624.0,2623.7,2.76]
[1729646476962,0.793,2624.0,2623.9,1.38]
[1729646477166,1.13617,2624.0,2623.9,1.38]
[1729646477672,0.34309,2624.7,2624.4,0.34311]
[1729646477878,0.34308,2624.8,2624.6,1.38]
[1729646478068,0.34308,2624.8,2624.5,4.9309]
[1729646478069,0.793,2625.4,2624.7,1.38]
[1729646478271,0.74559,2625.4,2625.3,1.38]
[1729646479266,0.4047,2625.7,2625.3,6.5688]
[1729646479469,0.34295,2625.7,2625.6,1.38]
[1729646480374,0.34295,2625.7,2625.5,2.98]
[1729646480676,0.34296,2625.7,2625.5,2.98]
[1729646480875,0.34296,2625.6,2625.5,2.98]
[1729646481468,3.2078,2626.1,2625.3,6.1878]
[1729646481662,0.85728,2626.0,2625.3,6.1878]
[1729646481872,0.34298,2625.5,2625.3,6.1878]
[1729646482069,0.4166,2625.9,2625.3,6.1878]
[1729646482367,0.34297,2625.6,2625.3,6.53079]
[1729646482569,0.34297,2625.6,2625.3,6.1878]
[1729646483169,0.34298,2625.5,2625.3,6.1878]
[1729646483578,0.34298,2625.5,2625.3,9.9966]
[1729646483765,0.34297,2625.6,2625.3,9.9966]
[1729646483969,0.34299,2625.5,2625.3,6.1878]
[1729646484370,0.34299,2625.5,2625.3,9.9966]
[1729646484577,0.34299,2625.4,2625.3,9.9966]
[1729646484770,0.34299,2625.4,2625.3,6.1878]
[1729646485072,0.34299,2625.4,2625.3,9.9966]
[1729646485471,0.4143,2625.8,2625.3,9.9966]
[1729646485671,0.34295,2625.7,2625.6,2.98]
[1729646487076,0.85705,2626.8,2625.6,10.8376]
[1729646487281,0.34286,2626.4,2626.3,2.98]
[1729646487869,3.2078,2626.7,2626.0,2.98]
[1729646488077,0.3429,2626.1,2626.0,2.98]
[1729646488275,3.2078,2627.6,2626.0,5.96]
[1729646488473,0.34284,2626.6,2626.5,2.98]
[1729646489076,0.34284,2626.6,2626.5,6.7872]
[1729646489679,0.34284,2626.6,2626.5,2.98]
[1729646490181,0.34285,2626.5,2626.3,2.98]
[1729646490373,0.34285,2626.5,2626.4,3.2078]
[1729646490572,0.34283,2626.7,2626.4,3.55066]
[1729646490774,0.3428,2626.9,2626.6,2.98]
[1729646490978,0.34278,2627.0,2626.8,2.98]
[1729646491189,0.34279,2626.9,2626.8,2.98]
[1729646491481,0.34282,2626.7,2626.6,2.98]
[1729646491983,0.34286,2626.4,2626.3,2.98]
[1729646492180,0.85692,2627.1,2626.3,2.98]
[1729646492181,0.34285,2626.5,2626.3,2.98]
[1729646492579,3.2078,2627.1,2626.3,6.7872]
[1729646492784,0.34287,2626.3,2626.2,3.2078]
[1729646493180,0.34287,2626.3,2626.2,7.0158]
[1729646493982,0.34287,2626.3,2626.2,3.2078]
[1729646494581,0.34287,2626.3,2626.1,2.98]
[1729646494582,0.34288,2626.2,2626.1,2.98]
[1729646494780,0.34288,2626.3,2626.1,2.98]
[1729646494986,0.4008,2626.7,2626.1,2.98]
[1729646495188,0.34288,2626.2,2626.1,2.98]
[1729646495684,0.34291,2626.0,2625.9,3.2078]
[1729646495890,0.85712,2626.5,2625.9,7.0158]
[1729646496083,0.34291,2626.0,2625.9,3.2078]
[1729646496486,0.34291,2626.0,2625.9,7.0158]
[1729646497985,0.34291,2626.0,2624.5,0.3816]
[1729646497986,0.34295,2625.7,2625.6,6.1878]
[1729646498399,0.34295,2625.7,2625.6,9.9966]
[1729646499289,0.34295,2625.7,2625.6,6.1878]
[1729646500197,0.8039,2626.1,2625.6,9.9966]
[1729646500396,0.34295,2625.7,2625.6,3.2078]
[1729646500587,0.8039,2626.1,2625.0,0.0714]
[1729646500784,0.8039,2626.1,2625.1,3.5939]
[1729646500996,0.34298,2625.5,2625.2,0.34301]
[1729646501190,0.34298,2625.5,2625.4,3.2078]
[1729646501797,0.34298,2625.5,2625.4,9.9966]
[1729646502096,0.34298,2625.5,2625.4,6.1878]
[1729646502597,0.85731,2626.0,2625.4,6.1878]
[1729646503386,0.34298,2625.5,2625.4,6.1878]
[1729646503785,0.34297,2625.6,2625.4,6.1878]
[1729646504189,0.85735,2625.8,2624.8,0.959]
[1729646504398,0.34301,2625.2,2625.1,2.98]
[1729646504896,0.34301,2625.3,2625.1,2.98]
[1729646505095,0.34301,2625.3,2625.2,2.98]
[1729646505990,0.34301,2625.3,2625.2,6.1878]
[1729646506791,0.34301,2625.3,2625.2,3.2078]
[1729646507287,0.34301,2625.3,2625.2,6.1878]
[1729646510102,0.34301,2625.2,2625.1,3.2078]
[1729646511100,0.34301,2625.2,2625.1,7.0174]
[1729646511312,0.85706,2626.7,2625.3,2.98]
[1729646511604,0.4242,2626.3,2626.1,6.5307]
[1729646512393,0.4242,2626.3,2626.2,0.34288]
[1729646513399,0.4242,2626.3,2626.2,4.15088]
[1729646513600,0.34284,2626.5,2626.2,4.15088]
[1729646513807,0.34284,2626.5,2626.3,2.98]
[1729646514101,0.34284,2626.5,2626.3,3.32287]
[1729646514507,0.34284,2626.5,2626.3,2.98]
[1729646515508,0.34286,2626.4,2626.3,2.98]
[1729646515708,0.8078,2626.7,2626.3,2.98]
[1729646516392,0.34286,2626.4,2626.3,2.98]
[1729646517112,0.34288,2626.3,2626.1,6.53069]
[1729646517406,0.34286,2626.4,2626.2,0.34288]
[1729646518402,0.8078,2626.7,2626.2,0.34288]
[1729646518612,0.34287,2626.3,2626.2,0.34288]
[1729646518803,0.8078,2626.7,2626.1,6.1878]
[1729646519101,0.34288,2626.3,2626.1,6.53069]
[1729646519499,0.34288,2626.3,2626.1,7.13089]
[1729646519696,0.34288,2626.3,2626.2,3.2078]
[1729646520103,0.34288,2626.3,2626.2,7.0158]
[1729646520802,0.34288,2626.3,2626.2,7.35868]
[1729646521510,0.34287,2626.3,2626.2,7.0158]
[1729646522210,0.34287,2626.3,2626.2,3.2078]
[1729646522599,0.8078,2626.7,2626.1,3.32289]
[1729646522804,0.8078,2626.7,2626.1,2.98]
[1729646523004,0.34288,2626.3,2626.2,0.34288]
[1729646523206,0.34288,2626.3,2626.1,2.98]
[1729646523513,0.34288,2626.3,2626.1,3.32289]
[1729646523715,0.34289,2626.2,2626.1,0.34289]
[1729646524017,0.34289,2626.2,2626.0,0.3429]
[1729646524313,0.34289,2626.2,2626.1,0.3429]
[1729646524618,0.8078,2626.7,2625.9,3.2078]
[1729646524804,0.34287,2626.3,2626.2,3.2078]
[1729646525608,0.8078,2626.7,2626.2,3.2078]
[1729646525809,0.34287,2626.3,2626.2,3.2078]
[1729646526110,0.34286,2626.4,2626.2,6.53068]
[1729646526510,0.34286,2626.4,2626.3,3.808]
[1729646526814,4.0648,2626.9,2626.3,4.15087]
[1729646527017,0.34286,2626.5,2626.3,0.34287]
[1729646527224,0.34286,2626.4,2626.2,6.53067]
[1729646527716,0.34286,2626.4,2626.3,3.808]
[1729646528312,4.0648,2626.9,2626.3,3.808]
[1729646528517,4.0648,2626.9,2626.2,6.1878]
[1729646528732,0.85702,2626.8,2626.2,6.1878]
[1729646529111,0.34286,2626.4,2626.3,0.34287]
[1729646529907,0.34285,2626.5,2626.4,0.34286]
[1729646530306,0.34285,2626.5,2626.3,0.34287]
[1729646530914,0.34287,2626.4,2626.2,6.53068]
[1729646531410,0.72907,2626.3,2626.2,6.53068]
[1729646532313,0.3862,2626.3,2626.2,10.33868]
[1729646533724,0.3862,2626.3,2626.2,9.9958]
[1729646534012,0.72907,2626.3,2626.2,6.53068]
[1729646534319,0.72907,2626.3,2626.2,6.1878]
[1729646539022,0.72907,2626.3,2626.2,3.2078]
[1729646544835,0.72907,2626.3,2626.2,6.1878]
[1729646545527,0.72907,2626.3,2626.2,2.98]